[Event "Titled Tuesday Blitz August 15 Late 2023"]
[White "Yanchenko, Roman"]
[Black "Leenhouts, Koen"]
[WhiteFideId "4137329"]
[BlackFideId "1008439"]
[WhiteElo "2782"]
[BlackElo "2568"]
[Result "1/2-1/2"]
[Round "7"]
[TimeControl "180+1"]
[Date "2023.08.15"]
[WhiteClock "0:00:23"]
[BlackClock "0:00:08"]
[Board "34"]

1. d4 {[%clk 0:03:00]}  Nf6 {[%clk 0:02:57]} 2. Nf3 {[%clk 0:03:01]}  c5 {[%clk 0:02:57]} 3. c3 {[%clk 0:02:59]}  cxd4 {[%clk 0:02:57]} 4. cxd4 {[%clk 0:03:00]}  g6 {[%clk 0:02:58]} 5. Nc3 {[%clk 0:02:59]}  d5 {[%clk 0:02:56]} 6. Bf4 {[%clk 0:02:59]}  a6 {[%clk 0:02:52]} 7. e3 {[%clk 0:02:59]}  Nc6 {[%clk 0:02:51]} 8. Bd3 {[%clk 0:02:57]}  Bg7 {[%clk 0:02:50]} 9. O-O {[%clk 0:02:57]}  Bg4 {[%clk 0:02:50]} 10. h3 {[%clk 0:02:57]}  Bxf3 {[%clk 0:02:50]} 11. Qxf3 {[%clk 0:02:58]}  O-O {[%clk 0:02:50]} 12. Rfc1 {[%clk 0:02:58]}  Rc8 {[%clk 0:02:47]} 13. Rab1 {[%clk 0:02:54]}  Re8 {[%clk 0:02:35]} 14. Na4 {[%clk 0:02:34]}  e5 {[%clk 0:02:29]} 15. dxe5 {[%clk 0:02:17]}  Nxe5 {[%clk 0:02:27]} 16. Bxe5 {[%clk 0:02:11]}  Rxe5 {[%clk 0:02:25]} 17. Rxc8 {[%clk 0:02:09]}  Qxc8 {[%clk 0:02:26]} 18. Rd1 {[%clk 0:02:08]}  b5 {[%clk 0:02:17]} 19. Nc3 {[%clk 0:02:07]}  b4 {[%clk 0:02:13]} 20. Ne2 {[%clk 0:02:07]}  Ne4 {[%clk 0:02:10]} 21. Rc1 {[%clk 0:02:06]}  Qb7 {[%clk 0:01:51]} 22. Nd4 {[%clk 0:02:05]}  Re8 {[%clk 0:01:47]} 23. Qd1 {[%clk 0:01:42]}  Bxd4 {[%clk 0:01:45]} 24. exd4 {[%clk 0:01:42]}  Qb6 {[%clk 0:01:41]} 25. Bxe4 {[%clk 0:01:41]}  Rxe4 {[%clk 0:01:38]} 26. Rc5 {[%clk 0:01:41]}  Qe6 {[%clk 0:01:37]} 27. Rc1 {[%clk 0:01:26]}  Kg7 {[%clk 0:01:26]} 28. Qd2 {[%clk 0:01:20]}  a5 {[%clk 0:01:23]} 29. Kf1 {[%clk 0:00:42]}  Qa6+ {[%clk 0:01:22]} 30. Kg1 {[%clk 0:00:43]}  Re2 {[%clk 0:01:14]} 31. Qf4 {[%clk 0:00:43]}  Qf6 {[%clk 0:01:13]} 32. Qxf6+ {[%clk 0:00:42]}  Kxf6 {[%clk 0:01:13]} 33. Rc5 {[%clk 0:00:39]}  Rxb2 {[%clk 0:01:12]} 34. Rxa5 {[%clk 0:00:39]}  Ke6 {[%clk 0:01:12]} 35. Rb5 {[%clk 0:00:33]}  Rxa2 {[%clk 0:01:05]} 36. Rxb4 {[%clk 0:00:33]}  Ra1+ {[%clk 0:01:05]} 37. Kh2 {[%clk 0:00:33]}  Rc1 {[%clk 0:01:04]} 38. Rb2 {[%clk 0:00:20]}  Rd1 {[%clk 0:01:01]} 39. Rb4 {[%clk 0:00:21]}  h5 {[%clk 0:00:58]} 40. f3 {[%clk 0:00:20]}  h4 {[%clk 0:00:55]} 41. Ra4 {[%clk 0:00:20]}  g5 {[%clk 0:00:53]} 42. Rb4 {[%clk 0:00:20]}  f6 {[%clk 0:00:53]} 43. g4 {[%clk 0:00:19]}  Rd2+ {[%clk 0:00:49]} 44. Kg1 {[%clk 0:00:20]}  Rc2 {[%clk 0:00:46]} 45. Rb6+ {[%clk 0:00:19]}  Ke7 {[%clk 0:00:45]} 46. Rb7+ {[%clk 0:00:20]}  Ke6 {[%clk 0:00:42]} 47. Rb6+ {[%clk 0:00:20]}  Ke7 {[%clk 0:00:34]} 48. Rb5 {[%clk 0:00:20]}  Kd6 {[%clk 0:00:32]} 49. Rb6+ {[%clk 0:00:21]}  Rc6 {[%clk 0:00:32]} 50. Rb3 {[%clk 0:00:21]}  Rc4 {[%clk 0:00:29]} 51. Rd3 {[%clk 0:00:21]}  Rc2 {[%clk 0:00:29]} 52. f4 {[%clk 0:00:21]}  Ke6 {[%clk 0:00:18]} 53. Re3+ {[%clk 0:00:19]}  Kf7 {[%clk 0:00:17]} 54. fxg5 {[%clk 0:00:20]}  fxg5 {[%clk 0:00:15]} 55. Re5 {[%clk 0:00:20]}  Kf6 {[%clk 0:00:15]} 56. Rxd5 {[%clk 0:00:20]}  Rc1+ {[%clk 0:00:16]} 57. Kg2 {[%clk 0:00:20]}  Rc2+ {[%clk 0:00:16]} 58. Kf3 {[%clk 0:00:21]}  Rc3+ {[%clk 0:00:17]} 59. Ke4 {[%clk 0:00:21]}  Rxh3 {[%clk 0:00:16]} 60. Rd6+ {[%clk 0:00:22]}  Kf7 {[%clk 0:00:14]} 61. Kf5 {[%clk 0:00:22]}  Rf3+ {[%clk 0:00:09]} 62. Kxg5 {[%clk 0:00:22]}  h3 {[%clk 0:00:10]} 63. d5 {[%clk 0:00:21]}  h2 {[%clk 0:00:08]} 64. Rh6 {[%clk 0:00:21]}  Rd3 {[%clk 0:00:09]} 65. Rh7+ {[%clk 0:00:21]}  Kg8 {[%clk 0:00:08]} 66. Rxh2 {[%clk 0:00:21]}  Rxd5+ {[%clk 0:00:08]} 67. Kf6 {[%clk 0:00:22]}  Rd6+ {[%clk 0:00:08]} 68. Kf5 {[%clk 0:00:22]}  Rd5+ {[%clk 0:00:08]} 69. Ke4 {[%clk 0:00:23]}  Rd8 {[%clk 0:00:08]} 70. Ra2 {[%clk 0:00:21]}  Re8+ {[%clk 0:00:09]} 71. Kf5 {[%clk 0:00:22]}  Rf8+ {[%clk 0:00:10]} 72. Kg6 {[%clk 0:00:22]}  Re8 {[%clk 0:00:10]} 73. Ra6 {[%clk 0:00:22]}  Rf8 {[%clk 0:00:10]} 74. g5 {[%clk 0:00:22]}  Re8 {[%clk 0:00:11]} 75. Rf6 {[%clk 0:00:21]}  Rb8 {[%clk 0:00:11]} 76. Re6 {[%clk 0:00:22]}  Rc8 {[%clk 0:00:11]} 77. Kh6 {[%clk 0:00:22]}  Rd8 {[%clk 0:00:11]} 78. Rc6 {[%clk 0:00:22]}  Re8 {[%clk 0:00:11]} 79. Rg6+ {[%clk 0:00:22]}  Kh8 {[%clk 0:00:10]} 80. Ra6 {[%clk 0:00:23]}  Rd8 {[%clk 0:00:10]} 81. Kg6 {[%clk 0:00:23]}  Rg8+ {[%clk 0:00:09]} 82. Kf5 {[%clk 0:00:19]}  Rf8+ {[%clk 0:00:08]} 83. Rf6 {[%clk 0:00:19]}  Rb8 {[%clk 0:00:08]} 84. Rg6 {[%clk 0:00:19]}  Rb5+ {[%clk 0:00:08]} 85. Kf6 {[%clk 0:00:17]}  Rb6+ {[%clk 0:00:07]} 86. Kf7 {[%clk 0:00:18]}  Rb7+ {[%clk 0:00:07]} 87. Kf8 {[%clk 0:00:19]}  Rb8+ {[%clk 0:00:07]} 88. Ke7 {[%clk 0:00:19]}  Rb7+ {[%clk 0:00:08]} 89. Kf6 {[%clk 0:00:20]}  Rb6+ {[%clk 0:00:08]} 90. Kf5 {[%clk 0:00:20]}  Rb5+ {[%clk 0:00:09]} 91. Kg4 {[%clk 0:00:21]}  Rb1 {[%clk 0:00:08]} 92. Ra6 {[%clk 0:00:20]}  Kg7 {[%clk 0:00:07]} 93. Kf5 {[%clk 0:00:19]}  Rf1+ {[%clk 0:00:07]} 94. Ke5 {[%clk 0:00:20]}  Rf7 {[%clk 0:00:07]} 95. Rb6 {[%clk 0:00:19]}  Rf8 {[%clk 0:00:05]} 96. Rc6 {[%clk 0:00:18]}  Rf7 {[%clk 0:00:05]} 97. Ke4 {[%clk 0:00:18]}  Rf8 {[%clk 0:00:06]} 98. Rb6 {[%clk 0:00:19]}  Rf7 {[%clk 0:00:06]} 99. Rh6 {[%clk 0:00:19]}  Rf8 {[%clk 0:00:06]} 100. Re6 {[%clk 0:00:18]}  Rf7 {[%clk 0:00:06]} 101. Ke5 {[%clk 0:00:19]}  Rf8 {[%clk 0:00:07]} 102. Rd6 {[%clk 0:00:19]}  Rf7 {[%clk 0:00:07]} 103. Rc6 {[%clk 0:00:19]}  Rf8 {[%clk 0:00:08]} 104. g6 {[%clk 0:00:20]}  Rf1 {[%clk 0:00:07]} 105. Rb6 {[%clk 0:00:20]}  Re1+ {[%clk 0:00:07]} 106. Kf4 {[%clk 0:00:21]}  Rf1+ {[%clk 0:00:08]} 107. Ke3 {[%clk 0:00:21]}  Rg1 {[%clk 0:00:08]} 108. Kd2 {[%clk 0:00:22]}  Rxg6 {[%clk 0:00:08]} 109. Rxg6+ {[%clk 0:00:23]}  Kxg6 {[%clk 0:00:08]} 1/2-1/2


[Site "https://www.chess.com"]

[Event "Titled Tuesday Blitz August 15 Late 2023"]
[White "MFatigue"]
[Black "Stearman, Josiah"]
[BlackFideId "2062496"]
[WhiteElo "2502"]
[BlackElo "2766"]
[Result "1-0"]
[Round "7"]
[TimeControl "180+1"]
[Date "2023.08.15"]
[WhiteClock "0:00:24"]
[BlackClock "0:01:15"]
[Board "36"]

1. e4 {[%clk 0:03:00]}  c5 {[%clk 0:02:59]} 2. a3 {[%clk 0:03:00]}  e5 {[%clk 0:02:56]} 3. Nc3 {[%clk 0:03:00]}  Nf6 {[%clk 0:02:56]} 4. Bc4 {[%clk 0:03:00]}  a6 {[%clk 0:02:56]} 5. d3 {[%clk 0:03:01]}  b5 {[%clk 0:02:56]} 6. Ba2 {[%clk 0:02:58]}  Bb7 {[%clk 0:02:57]} 7. Nf3 {[%clk 0:02:58]}  Nc6 {[%clk 0:02:57]} 8. Nd5 {[%clk 0:02:57]}  h6 {[%clk 0:02:50]} 9. c4 {[%clk 0:02:55]}  Bd6 {[%clk 0:02:46]} 10. h3 {[%clk 0:02:46]}  b4 {[%clk 0:02:43]} 11. O-O {[%clk 0:02:45]}  a5 {[%clk 0:02:42]} 12. Be3 {[%clk 0:02:38]}  Nd4 {[%clk 0:02:38]} 13. axb4 {[%clk 0:02:33]}  axb4 {[%clk 0:02:35]} 14. Bxd4 {[%clk 0:02:23]}  cxd4 {[%clk 0:02:32]} 15. Bb3 {[%clk 0:02:18]}  Nxd5 {[%clk 0:02:22]} 16. exd5 {[%clk 0:02:03]}  Qc7 {[%clk 0:02:10]} 17. Rxa8+ {[%clk 0:02:03]}  Bxa8 {[%clk 0:02:10]} 18. Qe2 {[%clk 0:02:03]}  O-O {[%clk 0:02:08]} 19. Nd2 {[%clk 0:02:03]}  f5 {[%clk 0:02:07]} 20. f4 {[%clk 0:02:01]}  e4 {[%clk 0:01:58]} 21. dxe4 {[%clk 0:02:01]}  Bxf4 {[%clk 0:01:58]} 22. d6 {[%clk 0:01:48]}  Be3+ {[%clk 0:01:45]} 23. Qxe3 {[%clk 0:01:34]}  dxe3 {[%clk 0:01:46]} 24. dxc7 {[%clk 0:01:34]}  exd2 {[%clk 0:01:46]} 25. Rxf5 {[%clk 0:01:27]}  Rc8 {[%clk 0:01:38]} 26. Rb5 {[%clk 0:00:30]}  Rxc7 {[%clk 0:01:31]} 27. Rb8+ {[%clk 0:00:30]}  Kh7 {[%clk 0:01:31]} 28. Rxa8 {[%clk 0:00:31]}  Rxc4 {[%clk 0:01:31]} 29. Kf2 {[%clk 0:00:31]}  Rxe4 {[%clk 0:01:21]} 30. Ra1 {[%clk 0:00:24]}  Re1 {[%clk 0:01:15]} 31. Rxe1 {[%clk 0:00:24]} 1-0


[Site "https://www.chess.com"]

[Event "Titled Tuesday Blitz August 15 Late 2023"]
[White "Haydon, David L"]
[Black "Gurevich, Dmitry"]
[WhiteFideId "415405"]
[BlackFideId "2000407"]
[WhiteElo "2744"]
[BlackElo "2483"]
[Result "1-0"]
[Round "7"]
[TimeControl "180+1"]
[Date "2023.08.15"]
[WhiteClock "0:00:48"]
[BlackClock "0:00:11"]
[Board "38"]

1. d4 {[%clk 0:02:55]}  d5 {[%clk 0:02:59]} 2. Nc3 {[%clk 0:02:53]}  Nf6 {[%clk 0:02:57]} 3. Bf4 {[%clk 0:02:53]}  a6 {[%clk 0:02:57]} 4. e3 {[%clk 0:02:51]}  e6 {[%clk 0:02:57]} 5. Nf3 {[%clk 0:02:50]}  c5 {[%clk 0:02:56]} 6. dxc5 {[%clk 0:02:48]}  Bxc5 {[%clk 0:02:55]} 7. Bd3 {[%clk 0:02:47]}  Nc6 {[%clk 0:02:52]} 8. O-O {[%clk 0:02:46]}  h6 {[%clk 0:02:50]} 9. h3 {[%clk 0:02:44]}  O-O {[%clk 0:02:48]} 10. e4 {[%clk 0:02:39]}  d4 {[%clk 0:02:41]} 11. Ne2 {[%clk 0:02:38]}  Qe7 {[%clk 0:02:41]} 12. e5 {[%clk 0:02:37]}  Nd5 {[%clk 0:02:41]} 13. Bh2 {[%clk 0:02:36]}  f5 {[%clk 0:02:33]} 14. exf6 {[%clk 0:02:32]}  Qxf6 {[%clk 0:02:32]} 15. Ng3 {[%clk 0:02:29]}  Bd6 {[%clk 0:02:21]} 16. Kh1 {[%clk 0:02:29]}  Bxg3 {[%clk 0:02:10]} 17. Bxg3 {[%clk 0:02:26]}  Nf4 {[%clk 0:02:08]} 18. Be4 {[%clk 0:02:25]}  Bd7 {[%clk 0:01:53]} 19. c3 {[%clk 0:02:14]}  Rad8 {[%clk 0:01:43]} 20. cxd4 {[%clk 0:02:08]}  Be8 {[%clk 0:01:43]} 21. Qc2 {[%clk 0:01:56]}  Rc8 {[%clk 0:01:18]} 22. Qd2 {[%clk 0:01:50]}  Rd8 {[%clk 0:01:15]} 23. Rad1 {[%clk 0:01:48]}  Bh5 {[%clk 0:01:09]} 24. Qe3 {[%clk 0:01:32]}  Nxh3 {[%clk 0:01:04]} 25. d5 {[%clk 0:01:24]}  Ne7 {[%clk 0:00:45]} 26. dxe6 {[%clk 0:01:00]}  Rxd1 {[%clk 0:00:42]} 27. Rxd1 {[%clk 0:01:00]}  Ng5 {[%clk 0:00:41]} 28. Nxg5 {[%clk 0:00:54]}  Bxd1 {[%clk 0:00:39]} 29. Nh7 {[%clk 0:00:54]}  Qxb2 {[%clk 0:00:11]} 30. Nxf8 {[%clk 0:00:48]} 1-0


[Site "https://www.chess.com"]

[Event "Titled Tuesday Blitz August 15 Late 2023"]
[White "Lamaze, Simon"]
[Black "KrokerGuy"]
[WhiteFideId "36069264"]
[WhiteElo "2726"]
[BlackElo "2469"]
[Result "1-0"]
[Round "7"]
[TimeControl "180+1"]
[Date "2023.08.15"]
[WhiteClock "0:00:52"]
[BlackClock "0:00:00"]
[Board "39"]

1. c4 {[%clk 0:03:00]}  e6 {[%clk 0:03:00]} 2. d4 {[%clk 0:03:00]}  d5 {[%clk 0:03:01]} 3. Nf3 {[%clk 0:03:00]}  Nf6 {[%clk 0:03:01]} 4. g3 {[%clk 0:03:01]}  dxc4 {[%clk 0:03:02]} 5. Bg2 {[%clk 0:03:01]}  a6 {[%clk 0:03:02]} 6. O-O {[%clk 0:03:01]}  Nc6 {[%clk 0:03:03]} 7. e3 {[%clk 0:03:01]}  Bd7 {[%clk 0:03:04]} 8. Qe2 {[%clk 0:03:01]}  b5 {[%clk 0:03:03]} 9. b3 {[%clk 0:02:59]}  cxb3 {[%clk 0:03:03]} 10. axb3 {[%clk 0:03:00]}  Be7 {[%clk 0:02:43]} 11. Nc3 {[%clk 0:02:58]}  O-O {[%clk 0:02:41]} 12. Bb2 {[%clk 0:02:58]}  Nb4 {[%clk 0:02:42]} 13. Ne5 {[%clk 0:02:57]}  Nfd5 {[%clk 0:02:42]} 14. Ne4 {[%clk 0:02:56]}  Be8 {[%clk 0:02:41]} 15. Rfc1 {[%clk 0:02:56]}  f6 {[%clk 0:02:41]} 16. Nd3 {[%clk 0:02:51]}  Bg6 {[%clk 0:02:23]} 17. Ndc5 {[%clk 0:02:48]}  Qc8 {[%clk 0:01:47]} 18. Ba3 {[%clk 0:02:40]}  c6 {[%clk 0:01:25]} 19. h4 {[%clk 0:02:35]}  a5 {[%clk 0:01:23]} 20. h5 {[%clk 0:02:33]}  Bxe4 {[%clk 0:01:16]} 21. Bxe4 {[%clk 0:02:28]}  a4 {[%clk 0:01:07]} 22. bxa4 {[%clk 0:02:25]}  Bxc5 {[%clk 0:01:02]} 23. Rxc5 {[%clk 0:02:18]}  Rxa4 {[%clk 0:01:03]} 24. Bb2 {[%clk 0:02:17]}  Rxa1+ {[%clk 0:00:59]} 25. Bxa1 {[%clk 0:02:18]}  Qa6 {[%clk 0:00:59]} 26. Bb2 {[%clk 0:02:16]}  f5 {[%clk 0:00:59]} 27. Bf3 {[%clk 0:02:12]}  Nf6 {[%clk 0:00:54]} 28. Kg2 {[%clk 0:02:10]}  Rc8 {[%clk 0:00:48]} 29. h6 {[%clk 0:02:08]}  Nd7 {[%clk 0:00:41]} 30. Rc1 {[%clk 0:02:03]}  g6 {[%clk 0:00:37]} 31. Ra1 {[%clk 0:02:01]}  Qb7 {[%clk 0:00:35]} 32. Qd2 {[%clk 0:01:56]}  Nd5 {[%clk 0:00:32]} 33. Qa5 {[%clk 0:01:42]}  N7b6 {[%clk 0:00:27]} 34. Bc1 {[%clk 0:01:15]}  Ra8 {[%clk 0:00:27]} 35. Bxd5 {[%clk 0:01:10]}  Rxa5 {[%clk 0:00:16]} 36. Bxe6+ {[%clk 0:01:10]}  Kf8 {[%clk 0:00:15]} 37. Rxa5 {[%clk 0:01:10]}  Ke7 {[%clk 0:00:15]} 38. Bg8 {[%clk 0:01:09]}  Nc4 {[%clk 0:00:10]} 39. Bxc4 {[%clk 0:01:07]}  bxc4 {[%clk 0:00:11]} 40. Rc5 {[%clk 0:01:06]}  Qa6 {[%clk 0:00:09]} 41. e4 {[%clk 0:01:02]}  fxe4 {[%clk 0:00:09]} 42. Be3 {[%clk 0:01:02]}  Kd6 {[%clk 0:00:07]} 43. Kh3 {[%clk 0:01:01]}  Qa4 {[%clk 0:00:03]} 44. Kg4 {[%clk 0:00:56]}  Qd1+ {[%clk 0:00:03]} 45. Kg5 {[%clk 0:00:57]}  Qf3 {[%clk 0:00:04]} 46. Bf4+ {[%clk 0:00:56]}  Kd7 {[%clk 0:00:03]} 47. Kf6 {[%clk 0:00:56]}  Qd3 {[%clk 0:00:03]} 48. Be3 {[%clk 0:00:55]}  c3 {[%clk 0:00:03]} 49. Kg7 {[%clk 0:00:55]}  c2 {[%clk 0:00:03]} 50. Kxh7 {[%clk 0:00:56]}  Kd6 {[%clk 0:00:02]} 51. Kg7 {[%clk 0:00:54]}  c1=Q {[%clk 0:00:02]} 52. h7 {[%clk 0:00:53]}  Qxc5 {[%clk 0:00:01]} 53. dxc5+ {[%clk 0:00:53]}  Kd5 {[%clk 0:00:02]} 54. h8=Q {[%clk 0:00:54]}  Kc4 {[%clk 0:00:02]} 55. Qg8+ {[%clk 0:00:52]}  Kb5 {[%clk 0:00:02]} 56. Qf7 {[%clk 0:00:53]}  Qd5 {[%clk 0:00:02]} 57. Qf6 {[%clk 0:00:54]}  Qd7+ {[%clk 0:00:02]} 58. Kxg6 {[%clk 0:00:55]}  Qg4+ {[%clk 0:00:02]} 59. Qg5 {[%clk 0:00:55]}  Qf3 {[%clk 0:00:03]} 60. Qf5 {[%clk 0:00:54]}  Qg2 {[%clk 0:00:02]} 61. Kg5 {[%clk 0:00:55]}  Kc4 {[%clk 0:00:02]} 62. Qe5 {[%clk 0:00:54]}  Kd3 {[%clk 0:00:02]} 63. Qd4+ {[%clk 0:00:54]}  Kc2 {[%clk 0:00:02]} 64. Kf5 {[%clk 0:00:54]}  Qf3+ {[%clk 0:00:02]} 65. Ke5 {[%clk 0:00:54]}  Qh5+ {[%clk 0:00:02]} 66. Kxe4 {[%clk 0:00:54]}  Qg6+ {[%clk 0:00:01]} 67. Ke5 {[%clk 0:00:55]}  Qg7+ {[%clk 0:00:01]} 68. Kd6 {[%clk 0:00:55]}  Qg6+ {[%clk 0:00:02]} 69. Kc7 {[%clk 0:00:55]}  Kb1 {[%clk 0:00:02]} 70. Qd6 {[%clk 0:00:54]}  Qf7+ {[%clk 0:00:01]} 71. Kxc6 {[%clk 0:00:55]}  Qf3+ {[%clk 0:00:01]} 72. Kb6 {[%clk 0:00:55]}  Qe2 {[%clk 0:00:01]} 73. g4 {[%clk 0:00:54]}  Qb2+ {[%clk 0:00:01]} 74. Kc7 {[%clk 0:00:54]}  Qg7+ {[%clk 0:00:02]} 75. Qd7 {[%clk 0:00:54]}  Qe5+ {[%clk 0:00:02]} 76. Kc8 {[%clk 0:00:54]}  Qh8+ {[%clk 0:00:02]} 77. Kb7 {[%clk 0:00:54]}  Qb2+ {[%clk 0:00:02]} 78. Kc7 {[%clk 0:00:54]}  Qe5+ {[%clk 0:00:02]} 79. Kc8 {[%clk 0:00:53]}  Qh8+ {[%clk 0:00:02]} 80. Qd8 {[%clk 0:00:54]}  Qe5 {[%clk 0:00:03]} 81. c6 {[%clk 0:00:54]}  Ka2 {[%clk 0:00:01]} 82. c7 {[%clk 0:00:50]}  Qe6+ {[%clk 0:00:02]} 83. Qd7 {[%clk 0:00:51]}  Qg8+ {[%clk 0:00:01]} 84. Kb7 {[%clk 0:00:51]}  Qb3+ {[%clk 0:00:02]} 85. Bb6 {[%clk 0:00:51]}  Qf3+ {[%clk 0:00:02]} 86. Qc6 {[%clk 0:00:51]}  Qxg4 {[%clk 0:00:00]} 87. c8=Q {[%clk 0:00:52]} 1-0


[Site "https://www.chess.com"]

[Event "Titled Tuesday Blitz August 15 Late 2023"]
[White "Hua, Lefong"]
[Black "Ribeiro, Matheus Mendes Domingues"]
[WhiteFideId "2602253"]
[BlackFideId "324226923"]
[WhiteElo "2709"]
[BlackElo "2467"]
[Result "1-0"]
[Round "7"]
[TimeControl "180+1"]
[Date "2023.08.15"]
[WhiteClock "0:00:27"]
[BlackClock "0:00:01"]
[Board "40"]

1. d4 {[%clk 0:03:00]}  d5 {[%clk 0:02:57]} 2. c4 {[%clk 0:03:00]}  e6 {[%clk 0:02:57]} 3. Nc3 {[%clk 0:03:01]}  Nf6 {[%clk 0:02:57]} 4. cxd5 {[%clk 0:03:01]}  exd5 {[%clk 0:02:53]} 5. Bg5 {[%clk 0:03:01]}  Be6 {[%clk 0:02:54]} 6. e3 {[%clk 0:03:01]}  c6 {[%clk 0:02:52]} 7. Bd3 {[%clk 0:03:01]}  Nbd7 {[%clk 0:02:52]} 8. Qc2 {[%clk 0:03:01]}  h6 {[%clk 0:02:52]} 9. Bh4 {[%clk 0:03:01]}  g5 {[%clk 0:02:52]} 10. Bg3 {[%clk 0:03:01]}  Nh5 {[%clk 0:02:50]} 11. Nge2 {[%clk 0:03:01]}  Nxg3 {[%clk 0:02:47]} 12. Nxg3 {[%clk 0:03:02]}  h5 {[%clk 0:02:47]} 13. O-O {[%clk 0:02:58]}  Qf6 {[%clk 0:02:39]} 14. f3 {[%clk 0:02:54]}  Bd6 {[%clk 0:02:26]} 15. Nf5 {[%clk 0:02:41]}  Bxf5 {[%clk 0:02:12]} 16. Bxf5 {[%clk 0:02:42]}  Nb6 {[%clk 0:02:04]} 17. b3 {[%clk 0:02:29]}  O-O {[%clk 0:02:03]} 18. Rad1 {[%clk 0:02:27]}  Rfe8 {[%clk 0:01:26]} 19. e4 {[%clk 0:02:20]}  Bb4 {[%clk 0:01:11]} 20. e5 {[%clk 0:02:15]}  Qg7 {[%clk 0:01:11]} 21. f4 {[%clk 0:02:00]}  g4 {[%clk 0:01:11]} 22. Ne2 {[%clk 0:01:55]}  c5 {[%clk 0:01:11]} 23. Kh1 {[%clk 0:01:49]}  c4 {[%clk 0:01:09]} 24. Qb1 {[%clk 0:01:39]}  Be7 {[%clk 0:01:06]} 25. Bc2 {[%clk 0:01:36]}  Rac8 {[%clk 0:00:52]} 26. Ng3 {[%clk 0:01:28]}  Qh8 {[%clk 0:00:35]} 27. Nf5 {[%clk 0:01:15]}  c3 {[%clk 0:00:28]} 28. Nxe7+ {[%clk 0:01:08]}  Rxe7 {[%clk 0:00:28]} 29. f5 {[%clk 0:01:08]}  Qh6 {[%clk 0:00:25]} 30. f6 {[%clk 0:01:05]}  Rec7 {[%clk 0:00:23]} 31. Rd3 {[%clk 0:00:50]}  Nd7 {[%clk 0:00:23]} 32. h3 {[%clk 0:00:41]}  Nf8 {[%clk 0:00:18]} 33. Kg1 {[%clk 0:00:40]}  Ne6 {[%clk 0:00:17]} 34. hxg4 {[%clk 0:00:39]}  hxg4 {[%clk 0:00:18]} 35. Qd1 {[%clk 0:00:40]}  Kf8 {[%clk 0:00:08]} 36. Qxg4 {[%clk 0:00:39]}  Ke8 {[%clk 0:00:08]} 37. Qg8+ {[%clk 0:00:38]}  Qf8 {[%clk 0:00:06]} 38. Qxf8+ {[%clk 0:00:38]}  Nxf8 {[%clk 0:00:07]} 39. g4 {[%clk 0:00:35]}  Ne6 {[%clk 0:00:07]} 40. Kf2 {[%clk 0:00:35]}  b5 {[%clk 0:00:06]} 41. Rg1 {[%clk 0:00:29]}  Kd7 {[%clk 0:00:06]} 42. g5 {[%clk 0:00:29]}  Rg8 {[%clk 0:00:06]} 43. g6 {[%clk 0:00:27]}  Ke8 {[%clk 0:00:04]} 44. g7 {[%clk 0:00:27]}  Nf4 {[%clk 0:00:04]} 45. Rf3 {[%clk 0:00:27]}  Ne6 {[%clk 0:00:03]} 46. Ke3 {[%clk 0:00:27]}  b4 {[%clk 0:00:03]} 47. Rh3 {[%clk 0:00:27]}  Kd7 {[%clk 0:00:03]} 48. Rh8 {[%clk 0:00:27]}  Rcc8 {[%clk 0:00:04]} 49. Rgh1 {[%clk 0:00:27]}  Nxg7 {[%clk 0:00:03]} 50. fxg7 {[%clk 0:00:27]}  Rxg7 {[%clk 0:00:03]} 51. Bf5+ {[%clk 0:00:27]}  Ke7 {[%clk 0:00:01]} 52. Rxc8 {[%clk 0:00:27]} 1-0


[Site "https://www.chess.com"]

[Event "Titled Tuesday Blitz August 15 Late 2023"]
[White "Papasimakopoulos, Alexandros"]
[Black "Harriott, Tyrell"]
[WhiteFideId "4244125"]
[BlackFideId "2086484"]
[WhiteElo "2706"]
[BlackElo "2452"]
[Result "1-0"]
[Round "7"]
[TimeControl "180+1"]
[Date "2023.08.15"]
[WhiteClock "0:01:55"]
[BlackClock "0:00:10"]
[Board "41"]

1. d4 {[%clk 0:03:00]}  e6 {[%clk 0:02:55]} 2. c4 {[%clk 0:03:01]}  d5 {[%clk 0:02:55]} 3. Nc3 {[%clk 0:03:01]}  f5 {[%clk 0:02:54]} 4. g4 {[%clk 0:02:53]}  Ne7 {[%clk 0:02:45]} 5. gxf5 {[%clk 0:02:53]}  Nxf5 {[%clk 0:02:45]} 6. cxd5 {[%clk 0:02:50]}  exd5 {[%clk 0:02:45]} 7. Nf3 {[%clk 0:02:50]}  Be7 {[%clk 0:02:42]} 8. Bf4 {[%clk 0:02:48]}  O-O {[%clk 0:02:39]} 9. e3 {[%clk 0:02:48]}  Bf6 {[%clk 0:02:34]} 10. Bd3 {[%clk 0:02:47]}  c6 {[%clk 0:02:33]} 11. Qc2 {[%clk 0:02:43]}  Be7 {[%clk 0:02:17]} 12. Ne5 {[%clk 0:02:39]}  Bg5 {[%clk 0:02:05]} 13. Bxg5 {[%clk 0:02:37]}  Qxg5 {[%clk 0:02:03]} 14. O-O-O {[%clk 0:02:37]}  Kh8 {[%clk 0:01:46]} 15. h4 {[%clk 0:02:27]}  Qh6 {[%clk 0:01:43]} 16. h5 {[%clk 0:02:26]}  Nxd4 {[%clk 0:01:39]} 17. Qa4 {[%clk 0:02:23]}  Nf5 {[%clk 0:01:25]} 18. Ng6+ {[%clk 0:02:19]}  Kg8 {[%clk 0:01:17]} 19. Nxf8 {[%clk 0:02:19]}  Kxf8 {[%clk 0:01:16]} 20. Bxf5 {[%clk 0:02:09]}  Bxf5 {[%clk 0:01:09]} 21. Qb4+ {[%clk 0:02:10]}  Kf7 {[%clk 0:00:46]} 22. Qxb7+ {[%clk 0:02:07]}  Nd7 {[%clk 0:00:46]} 23. Qxa8 {[%clk 0:02:07]}  Qd6 {[%clk 0:00:38]} 24. Nxd5 {[%clk 0:02:01]}  cxd5 {[%clk 0:00:30]} 25. Qxd5+ {[%clk 0:02:02]}  Qxd5 {[%clk 0:00:29]} 26. Rxd5 {[%clk 0:02:02]}  Ke6 {[%clk 0:00:29]} 27. Rhd1 {[%clk 0:01:57]}  Nb6 {[%clk 0:00:23]} 28. Ra5 {[%clk 0:01:55]}  Bg4 {[%clk 0:00:20]} 29. Rg1 {[%clk 0:01:54]}  Bf3 {[%clk 0:00:18]} 30. Rxg7 {[%clk 0:01:52]}  Nc4 {[%clk 0:00:14]} 31. Rc5 {[%clk 0:01:48]}  Ne5 {[%clk 0:00:14]} 32. Rxe5+ {[%clk 0:01:48]}  Kxe5 {[%clk 0:00:14]} 33. Rxa7 {[%clk 0:01:47]}  h6 {[%clk 0:00:14]} 34. Ra6 {[%clk 0:01:47]}  Bxh5 {[%clk 0:00:13]} 35. Ra5+ {[%clk 0:01:47]}  Ke4 {[%clk 0:00:12]} 36. Rxh5 {[%clk 0:01:48]}  Kd3 {[%clk 0:00:11]} 37. Rxh6 {[%clk 0:01:48]}  Ke4 {[%clk 0:00:12]} 38. Rh4+ {[%clk 0:01:47]}  Kd5 {[%clk 0:00:10]} 39. Rd4+ {[%clk 0:01:48]}  Kc5 {[%clk 0:00:10]} 40. f4 {[%clk 0:01:48]}  Kc6 {[%clk 0:00:11]} 41. f5 {[%clk 0:01:49]}  Kc5 {[%clk 0:00:12]} 42. f6 {[%clk 0:01:50]}  Kc6 {[%clk 0:00:12]} 43. f7 {[%clk 0:01:50]}  Kb5 {[%clk 0:00:12]} 44. f8=Q {[%clk 0:01:51]}  Kc6 {[%clk 0:00:12]} 45. Qe7 {[%clk 0:01:52]}  Kb5 {[%clk 0:00:12]} 46. Qe5+ {[%clk 0:01:53]}  Kc6 {[%clk 0:00:12]} 47. Rd6+ {[%clk 0:01:54]}  Kb7 {[%clk 0:00:10]} 48. Qe7+ {[%clk 0:01:55]} 1-0


[Site "https://www.chess.com"]